Cogmind - Beta 12 @@@ ROGUE MODE // 2023.03.29 @ 06:43:11 Player: tareth Result: Destroyed by X-62 Marksman with Pulse Rifle Performance ------------- Evolutions (2) 1000 Regions Visited (4) 800 Robots Destroyed (40) 200 Value Destroyed (1339) 1339 Prototype IDs (0) 0 Alien Tech Used (0) 0 Bonus (200) 200 TOTAL SCORE: 3539 Bonus ------- Pacifist 200 Cogmind --------- Core Integrity 0/550 Matter 186/300 Energy 88/100 System Corruption 0% Temperature Cool (13) Movement Walking (120) Location -8/Materials Parts ------- > --- POWER (1) -------- (None) > --- PROPULSION (4) --- Aluminum Leg Aluminum Leg Improved Carbon-fiber Leg Improved Carbon-fiber Leg > --- UTILITY (4) ------ Small Storage Unit > --- WEAPON (2) ------- Gauss Rifle > --- INVENTORY (8) ---- Terrain Scanner Peak State ------------ > --- POWER ------------ Improved Deuterium Engine > --- PROPULSION ------- Aluminum Leg Aluminum Leg Improved Carbon-fiber Leg Improved Carbon-fiber Leg > --- UTILITY ---------- Improved Cooling System Small Storage Unit > --- WEAPON ----------- Gauss Rifle Gauss Rifle > --- INVENTORY -------- Terrain Scanner [Rating: 27] Favorites ----------- Power Ion Engine Engine Ion Engine Power Core Light Nuclear Core Propulsion Aluminum Leg Treads Light Treads Leg Aluminum Leg Wheel Wheel Utility Small Storage Unit Device Heat Sink Storage Small Storage Unit Processor Improved Targeting Computer Protection Medium Armor Plating Weapon Light Assault Rifle Energy Gun Beam Rifle Ballistic Gun Light Assault Rifle Ballistic Cannon Assault Cannon Build | -11 -10 -9 -9 -8 ------- Run | Jun Mat Mat Min Mat Slots Evolved 4 | . . 2 . 2 Power . | . . . . . Propulsion 2 | . . 2 . . Utility 2 | . . . . 2 Weapon . | . . . . . Parts Attached 54 | 6 . 18 2 28 Power 9 | 1 . 3 . 5 Engine 8 | 1 . 3 . 4 Core 1 | . . . . 1 Reactor . | . . . . . Propulsion 21 | 2 . 11 1 7 Treads 9 | . . 6 . 3 Leg 9 | . . 4 1 4 Wheel 3 | 2 . 1 . . Hover . | . . . . . Flight . | . . . . . Utility 9 | 1 . 2 . 6 Device 4 | . . 2 . 2 Storage 1 | 1 . . . . Processor 2 | . . . . 2 Hackware . | . . . . . Protection 2 | . . . . 2 Artifact . | . . . . . Weapon 15 | 2 . 2 1 10 Energy Gun 3 | . . 2 1 . Energy Cannon . | . . . . . Ballistic Gun 10 | 2 . . . 8 Ballistic Cannon 2 | . . . . 2 Launcher . | . . . . . Special Weapon . | . . . . . Impact Weapon . | . . . . . Slashing Weapon . | . . . . . Piercing Weapon . | . . . . . Special Melee Weapon . | . . . . . Unidentified Prototypes . | . . . . . Parts Lost 25 | . . 3 . 22 Power 5 | . . 1 . 4 Propulsion 8 | . . 2 . 6 Utility 6 | . . . . 6 Weapon 6 | . . . . 6 Highest Loss Streak 11 | . . 3 . 11 To Critical Strikes . | . . . . . Average Slot Usage (%) 87 | . 85 96 100 79 Engine 7 | . 14 9 11 5 Core 1 | . . . . 3 Treads 15 | . . 26 8 13 Leg 16 | . . 3 35 16 Wheel 4 | . 28 12 . . Device 8 | . . 9 11 8 Storage 10 | . 14 11 11 9 Processor 1 | . . . . 3 Protection 1 | . . . . 3 Energy Gun 7 | . . 9 22 2 Ballistic Gun 9 | . 28 12 . 9 Ballistic Cannon 2 | . . . . 4 Naked Turns . | . . . . . Heaviest Build 25 | 13 13 16 16 25 Greatest Support 80 | 26 26 80 40 60 Greatest Overweight (x) 4 | . . . . 4 Average Overweight (x) . | . . . . . Largest Inventory Capacity 8 | 8 8 8 8 8 Average Capacity 7 | 7 8 8 8 8 Most Carried 8 | 6 8 8 8 8 Average Carried 6 | 3 6 7 8 5 Final Capacity 8 | 8 8 8 8 8 Final Carried 8 | 6 8 8 8 1 Class Distribution -------------------- 75% | Scavenger-Mutant 24% | Mutant Dominant Class ---------------- Mutant | -10/Materials Mutant | -9/Materials Scavenger-Mutant | -9/Mines Scavenger-Mutant | -8/Materials Resources | -11 -10 -9 -9 -8 ----------- Run | Jun Mat Mat Min Mat Matter Collected 976 | 189 . 316 40 431 Remotely . | . . . . . Salvage Created 1461 | . . 565 80 816 Parts 74 | . . 29 9 36 Haulers Intercepted . | . . . . . Recyclers Shooed . | . . . . . Parts Field Recycled . | . . . . . Retrieved Matter . | . . . . . Parts Self-Destructed . | . . . . . Prevented . | . . . . . Kills | -11 -10 -9 -9 -8 ------- Run | Jun Mat Mat Min Mat Combat Hostiles Destroyed 39 | . . 13 5 21 Guns 32 | . . 12 5 15 Cannons 6 | . . . . 6 Classes Destroyed 7 | . . 3 . 4 Worker 1 | . . . . 1 Swarmer 13 | . . 3 5 5 Grunt 17 | . . 6 . 11 Duelist 1 | . . . . 1 Sentry 5 | . . 4 . 1 Specialist 2 | . . . . 2 Hunter 1 | . . . . 1 Best Kill Streak 4 | . . 4 3 4 Combat Bots Only 4 | . . 4 3 4 Max Kills in Single Turn 2 | . . 1 2 1 Gunslinging 1 | . . . 1 . Exploded . | . . . . . Melee . | . . . . . Uniques/NPCs Destroyed . | . . . . . Combat | -11 -10 -9 -9 -8 -------- Run | Jun Mat Mat Min Mat Damage Taken 4117 | . . 880 67 3170 Core 697 | . . 128 7 562 Absorbed by Shields . | . . . . . Core Remaining (%) 88 | 100 100 . 66 . Volleys Fired 150 | . . 46 6 98 Largest 2 | . . 2 2 2 Hottest 106 | . . 106 106 96 Shots Fired 289 | . . 92 12 185 Gun 247 | . . 92 12 143 Cannon 42 | . . . . 42 Launcher . | . . . . . Special . | . . . . . Kinetic 215 | . . 50 . 165 Thermal 74 | . . 42 12 20 Explosive . | . . . . . Electromagnetic . | . . . . . Robot Hit Streak 24 | . . 20 3 24 Robot Miss Streak 3 | . . 3 2 3 Penetration Max . | . . . . . Secondary Targets 3 | . . . 2 1 Max Gunslinging Chain 1 | . . . 1 1 Shots Hit Robots 221 | . . 75 7 139 Core Hits 87 | . . 25 5 57 Critical Kills . | . . . . . Critical Parts Destroyed 1 | . . 1 . . Critical Strikes 10 | . . 4 . 6 Burn 4 | . . 3 . 1 Destroy 1 | . . 1 . . Blast 5 | . . . . 5 Melee Attacks . | . . . . . Impact . | . . . . . Slashing . | . . . . . Piercing . | . . . . . Sneak Attacks . | . . . . . Combat Hostiles . | . . . . . Follow-up Attacks . | . . . . . Damage Inflicted 2780 | . . 887 90 1803 Guns 2024 | . . 887 90 1047 Cannons 756 | . . . . 756 Explosions . | . . . . . Melee . | . . . . . Ramming . | . . . . . Kinetic 2085 | . . 441 . 1644 Thermal 695 | . . 446 90 159 Explosive . | . . . . . Electromagnetic . | . . . . . Impact . | . . . . . Slashing . | . . . . . Piercing . | . . . . . Highest Corruption . | . . . . . Average Corruption . | . . . . . Corruption Purged . | . . . . . Corruption Blocked . | . . . . . Overload Shots . | . . . . . Overflow Damage 6 | . . . . 6 Projectiles 6 | . . . . 6 Explosions . | . . . . . Melee . | . . . . . Knockbacks 17 | . . . . 17 Impact . | . . . . . Kinetic 16 | . . . . 16 Secondary 1 | . . . . 1 Self-Inflicted Damage . | . . . . . Shots . | . . . . . Rammed . | . . . . . Targets Rammed . | . . . . . Kicked . | . . . . . Crushed . | . . . . . Highest Temperature 177 | . . 177 12 116 Average Temperature 42 | . . 45 7 42 Received Heat Transfer 1485 | . . 351 . 1134 Siege Activations . | . . . . . Robots Corrupted . | . . . . . Combat Hostiles . | . . . . . Parts Fried . | . . . . . Impact Corruptions . | . . . . . Robots Melted 1 | . . 1 . . Combat Hostiles 1 | . . 1 . . Parts Melted 8 | . . 7 . 1 Heat Transferred 2148 | . . 1443 235 470 Parts Sabotaged . | . . . . . Parts Stolen . | . . . . . Parts Stripped . | . . . . . Power Chain Reactions . | . . . . . Missiles Intercepted . | . . . . . Alert | -11 -10 -9 -9 -8 ------- Run | Jun Mat Mat Min Mat Peak Influence 277 | . 15 276 219 277 Initial 85 | . . 5 69 85 Average 125 | . 7 139 108 139 Maximum Alert Level 1 | . . 1 1 1 Low Security (%) 90 | 100 100 89 94 88 Level 1 9 | . . 10 5 11 Level 2 . | . . . . . Level 3 . | . . . . . Level 4 . | . . . . . Level 5 . | . . . . . High Security . | . . . . . Max Security . | . . . . . Squads Dispatched 4 | . 1 . . 3 Investigation . | . . . . . Extermination . | . . . . . Reinforcement 4 | . 1 . . 3 Assault . | . . . . . Garrison . | . . . . . Intercept . | . . . . . Searches Triggered . | . . . . . Construction Impeded . | . . . . . Haulers Reinforced . | . . . . . Active Scanning Responses . | . . . . . Cargo Convoy Interrupts . | . . . . . Stealth | -11 -10 -9 -9 -8 --------- Run | Jun Mat Mat Min Mat Distress Signals 5 | . . 1 . 4 Communications Jammed . | . . . . . Distress Signals . | . . . . . Times Spotted 70 | . 2 23 6 39 Peak Tracking Total 8 | . 2 8 4 7 Tactical Retreats 2 | . . 1 1 . Traps | -11 -10 -9 -9 -8 ------- Run | Jun Mat Mat Min Mat Traps Triggered 3 | . . . . 3 Indirectly . | . . . . . Trap Hack Attempts . | . . . . . Triggered . | . . . . . Disarmed . | . . . . . Reprogrammed . | . . . . . Reused . | . . . . . Traps Extracted . | . . . . . Installed . | . . . . . Triggered . | . . . . . Machines | -11 -10 -9 -9 -8 ---------- Run | Jun Mat Mat Min Mat Machines Disabled 2 | . . . . 2 Max in Single Turn 1 | . . . . 1 Machines Repaired . | . . . . . Machines Sabotaged . | . . . . . Overloaded Fab Kills . | . . . . . Hacking | -11 -10 -9 -9 -8 --------- Run | Jun Mat Mat Min Mat Machines Accessed 2 | . . 1 . 1 Terminals 2 | . . 1 . 1 Fabricators . | . . . . . Repair Stations . | . . . . . Recycling Units . | . . . . . Scanalyzers . | . . . . . Garrison Access . | . . . . . Total Hacks 3 | . . 2 . 1 Successful 2 | . . 1 . 1 Failed 1 | . . 1 . . Catastrophic . | . . . . . Database Lockouts . | . . . . . Manual 3 | . . 2 . 1 Terminals 3 | . . 2 . 1 Fabricators . | . . . . . Repair Stations . | . . . . . Recycling Units . | . . . . . Scanalyzers . | . . . . . Garrison Access . | . . . . . Terminal Hacks 1 | . . 1 . . Record 1 | . . 1 . . Fabricator Hacks . | . . . . . Repair Station Hacks . | . . . . . Recycling Unit Hacks . | . . . . . Scanalyzer . | . . . . . Garrison Access Hacks . | . . . . . Unauthorized Hacks 1 | . . . . 1 Terminals 1 | . . . . 1 Track 1 | . . . . 1 Fabricators . | . . . . . Repair Stations . | . . . . . Recycling Units . | . . . . . Scanalyzers . | . . . . . Garrison Access . | . . . . . Data Cores Recovered . | . . . . . Used . | . . . . . Hacking Detections 1 | . . 1 . . Full Trace Events . | . . . . . Feedback Events . | . . . . . Feedback Blocked . | . . . . . Robot Schematics Acquired . | . . . . . Robots Built . | . . . . . Authchips . | . . . . . Time . | . . . . . Total Robot Build Rating . | . . . . . Part Schematics Acquired . | . . . . . Parts Built . | . . . . . Authchips . | . . . . . Time . | . . . . . Total Part Build Rating . | . . . . . Parts Repaired . | . . . . . Time . | . . . . . Parts Recycled . | . . . . . Recycled Matter . | . . . . . Retrieved Matter . | . . . . . Retrieved Components . | . . . . . Parts Scanalyzed . | . . . . . Part Schematics Acquired . | . . . . . Parts Damaged . | . . . . . Bothacking | -11 -10 -9 -9 -8 ------------ Run | Jun Mat Mat Min Mat Used RIF Installer . | . . . . . Robots Hacked . | . . . . . Non-combat . | . . . . . Combat . | . . . . . Robot Hacks Applied . | . . . . . Relay Couplers Released . | . . . . . Fabnet Peak Effective % . | . . . . . Robots Rewired . | . . . . . Allies Hacked . | . . . . . Hacks Repelled . | . . . . . Allies | -11 -10 -9 -9 -8 -------- Run | Jun Mat Mat Min Mat Total Allies . | . . . . . Largest Group . | . . . . . Highest-Rated Group . | . . . . . Highest-Rated Ally . | . . . . . Total Orders . | . . . . . Ally Attacks . | . . . . . Total Damage . | . . . . . Kills . | . . . . . Allies Corrupted . | . . . . . Allies Melted . | . . . . . Intel | -11 -10 -9 -9 -8 ------- Run | Jun Mat Mat Min Mat Robot Analysis Total . | . . . . . Derelict Logs Recovered 2 | . . . 2 . Drone Launches . | . . . . . Drone Recoveries . | . . . . . Exploration | -11 -10 -9 -9 -8 ------------- Run | Jun Mat Mat Min Mat Turns Passed 2030 | 61 65 522 357 1025 Spaces Moved 1084 | 52 69 245 275 443 Core 6 | 1 . . . 5 Treads 312 | . . 107 . 205 Legs 542 | . . 34 275 233 Wheels 224 | 51 69 104 . . Hover . | . . . . . Flight . | . . . . . Fastest Speed 50 | 50 90 86 120 120 Average Speed 125 | 89 90 123 120 140 Slowest Speed 250 | 100 90 160 120 250 Overloaded Moves . | . . . . . Propulsion Burnouts . | . . . . . Robots Hopped . | . . . . . Cave-ins Triggered . | . . . . . Exploration Rate (%) 31 | 4 17 20 80 35 Regions Visited 4 Branch Regions 1 Pre-discovered Areas 1 | . . . 1 . Known Exits Taken . | . . . . . Unknown Exits Taken 4 | 1 1 1 1 . Scrap Searched 2 | . . . 2 . Spaces Dug . | . . . . . Terrain Destroyed 2 | . . . . 2 Melee . | . . . . . Projectile 2 | . . . . 2 AOE . | . . . . . Terrain Rammed . | . . . . . Walls Destroyed . | . . . . . Machines Disabled . | . . . . . Actions | -11 -10 -9 -9 -8 --------- Run | Jun Mat Mat Min Mat Total 1482 | 63 72 378 291 678 Wait 145 | . . 46 5 94 Move 1080 | 51 68 244 274 443 Hop . | . . . . . Pick Up 31 | 6 3 12 2 8 Fast Attach 16 | 6 . 1 . 9 Attach 18 | . . 5 . 13 Detach . | . . . . . Swap 20 | . . 12 2 6 Drop 22 | . 1 12 2 7 Fire 150 | . . 46 6 98 Melee . | . . . . . Ram . | . . . . . Kick . | . . . . . Crush . | . . . . . Escape Stasis . | . . . . . Rewire . | . . . . . Trap . | . . . . . Miscellaneous . | . . . . . Route ------- -11/Junkyard -10/Materials -9/Materials -9/Mines -8/Materials (discovered 1 exit: Sto) History --------- Turn | Location | Event 4 | -11/Junkyard | Discovered new exit (range 16) 62 | -11/Junkyard | Entered Materials 112 | -10/Materials | Discovered new exit (range 13) 127 | -10/Materials | Entered another Materials area 127 | -9/Materials | Evolved 2 slots: Propulsion x2 307 | -9/Materials | Build established: Mutant 356 | -9/Materials | Lost 3 parts (1p2n) 537 | -9/Materials | Discovered new exit (range 9) 649 | -9/Materials | Entered Mines 654 | -9/Mines | Met a Derelict bent on vengeance 717 | -9/Mines | Build established: Scavenger-Mutant 974 | -9/Mines | Learned location of Zion (-6) 976 | -9/Mines | Discovered new exit (range 5) 1006 | -9/Mines | Entered Materials 1006 | -8/Materials | Evolved 2 slots: Utility x2 1007 | -8/Materials | Identified exit to Storage 1419 | -8/Materials | Lost 3 parts (1p2u) 1483 | -8/Materials | Lost 4 parts (3n1u) 1886 | -8/Materials | Core integrity fell below 50% 1935 | -8/Materials | Core integrity fell below 20% 1965 | -8/Materials | Lost 11 parts (2p3n1u5w) 2031 | -8/Materials | Destroyed by X-62 Marksman with Pulse Rifle Last Messages --------------- 01988_ R-06 Scavenger collects Imp. Ion Engine. 02003_ W-25 Informer sends out distress signal. 02004_ T-07 Excavator is excavating. 02005_ Knocked back. 02010_ Imp. Cooling System destroyed. 02010_ Knocked back. 02011_ Penetrated by Slug. 02011_ Gauss Rifle destroyed. 02012_ Penetrated by Slug. 02021_ Slug penetrates Wall. 02023_ Slug penetrates S-10 Pest. 02023_ S-10 Pest destroyed. 02024_ X-62 Marksman destroyed. 02026_ Imp. Deuterium Engine destroyed. 02026_ Knocked back. 02027_ Acquired 3 matter. 02028_ Penetrated by Slug. 02029_ K-01 Serf collects debris. 02030_ Knocked back. 02031_ Penetrated by Slug. Map ----- +----------------------------------------------------+ | ????????? "%" #?????????????????? | | ????????? %%!= #?????????????????? | | ????????? %%%!% #?????????????????? | | ????????????????########/#######?????????????????? | | ????????????????????# %%#????????????????????? | | ????????????????????# % * #????????????????????? | | ????????????????????# "" "" #????????????????????? | | ????????????????????# """"" #????????????????????? | | ????????????????????# #????????????????????? | | ????????????????????##/#########??????????????+??? | | ?????????????????????# #?????????????? #?? | | ?????????????????????# #??########???? #?? | | ?????????????????????# """ """ ####! #???# #?? | | ?????????????????????# """ """ + + #???# #?? | | ?????????????????????# """ """ #### "" #???# #?? | | ????????????????#????# """ """ #??# "" #???# #?# | | ????????????????# ??# """ """ #??# " #???# #?# | | ???????????????## ?# % #??# !#???# #?# | | ???????????#+### #####/###########+####### ### | | ?????????? u # | | ?????????? H % + | | ?????????? r *=k % # | | ???????????? ### ###;%/######## #########+##/# | | ???????????????#####?# %xs #??# ??????# # | | ?????????????????????# [! #??#???????# "" # | | ?????????????????????# %@ #??????????# "G # | | ?????????????????????# % #??????????# "" # | | ?????????????????????# """ """ #??????????# !# | | ?????????????????????# """ """ #??????????# # | | ?????????????????????# """ """ #????????########## | | ?????????????????????# #????????# | | ?????????????????????###########????????# | | ????????????????????????????????????????# | | ????????????????????????????????????????# """ """ | | ????????????????????????????????????????# """ """ | | ????????????????????????????????????????# """ """ | | ????????????????????????????????????????# | | ????????????????????????????????????????# | | ????????????????????????????????????????########## | | ?????????????????????????????????????????????????# | | ?????????????????????????????????????????????????# | | ?????????????????????????????????????????????????# | | ?????????????????????????????????????????######### | | ?????????????????????????????????????????# | | ?????????????????????????????????????????# """ | | ?????????????????????????????????????????# """ | | ?????????????????????????????????????????# "" | | ?????????????????????????????????????????# | | ?????????????????????????????????????????# """ % | | ?????????????????????????????????????????# """ | +----------------------------------------------------+ Best States ------------- Heat Dissipation 58 Energy Generation 16 Energy Capacity 290 Matter Stores 300 Matter Capacity 300 Sight Range 16 Terrain Scan Density 10 Armor Coverage 225 Evasion (%) 55 Targeting Accuracy 6 Recoil Reduction 4 Item Schematics ----------------- None Robot Schematics ------------------ None Fabricated ------------ Nothing Alien Tech Used ----------------- None Achievements -------------- None Challenges ------------ None Game ------ Seed TacticalBurstScreen Manual? 0 Play Time 00:35:33 Cumulative 25.4 hours Start 2023.03.28 @ 06:58:23 End 2023.03.29 @ 06:43:11 Sessions 3 Manual Loads 0 Difficulty Rogue Special Mode None Game No. 23 Rogue 23 Adventurer 0 Explorer 0 Win Type - Total 0 Types 0/0/0/0/0/0/0/0/0 Lore% 16 Gallery% 21 Achievement% 20 Wizard Run 0 Options --------- ASCII 0 Keyboard 0 Movement Numpad Keybinds 0 Fullscreen 1 Font 18/SmallcapsGlow Map View 76x50 Tactical HUD 1 Map Filters NONE Filters NONE Steam 1 RUN: 6166fdc0-539d-45eb-9afb-0aca78fe4309